Cogmind - Beta 15 @@@ ROGUE MODE // 2025.09.19 @ 23:31:01 Player: Lillith Result: Self-destructed Performance ------------- Evolutions (4) 2000 Regions Visited (8) 1600 Robots Destroyed (83) 415 Value Destroyed (2435) 2435 Prototype IDs (32) 640 Alien Tech Used (0) 0 Bonus (354) 354 TOTAL SCORE: 7444 Bonus ------- Follower Combat Kills 89 Aligned with FarCom 300 Friendly Fire -35 Cogmind --------- Core Integrity 385/850 Matter 223/300 Energy 100/100 System Corruption 5% Temperature Cool (0) Movement Core (50) Location -6/Waste Parts ------- > --- POWER (1) -------- (None) > --- PROPULSION (4) --- (None) > --- UTILITY (6) ------ (None) > --- WEAPON (4) ------- (None) > --- INVENTORY (5) ---- Medium Matter Pod (100) Hardened Medium Armor Plating Decoy Drone Bay Improved Grenade Launcher Peak State ------------ > --- POWER ------------ Micro Nuclear Core > --- PROPULSION ------- Improved Treads Armored Treads Advanced Treads Medium Treads > --- UTILITY ---------- High-capacity Storage Unit Structural Scanner Machine Analyzer Hardened Medium Armor Plating Improved Shield Generator Hacking Suite > --- WEAPON ----------- XL Autogun Array > --- INVENTORY -------- Deuterium Engine Armored Treads Armored Treads Armored Treads Armored Treads Improved Heat Sink Medium Matter Pod Compact Matter Pod Advanced Visual Processing Unit Advanced Signal Interpreter Hardened Medium Armor Plating Hardened Medium Armor Plating System Shield Improved Trap Extractor Decoy Drone Bay Gauss Rifle Mini Assault Cannon Improved Grenade Launcher Great Axe [Rating: 74] Favorites ----------- Power Heavy Ion Engine Engine Heavy Ion Engine Power Core Micro Nuclear Core Propulsion Light Treads Treads Light Treads Leg Carbon-fiber Leg Wheel Compact Wheel Flight Unit Improved Flight Unit Utility High-capacity Storage Unit Device Improved Trap Extractor Storage High-capacity Storage Unit Processor Machine Analyzer Hackware Hacking Suite Protection Hardened Medium Armor Plating Weapon Light Cannon Energy Gun Medium Laser Ballistic Gun XL Autogun Array Ballistic Cannon Light Cannon Launcher Grenade Launcher Slashing Weapon Blade Saw Build | -11 -10 -10 -10 -9 -8 -7 -6 -6 ------- Run | Yrd Mat Min Exi Min Mat Fac Fac Was Slots Evolved 8 | . . . . . 4 2 2 . Power . | . . . . . . . . . Propulsion 2 | . . . . . 2 . . . Utility 4 | . . . . . . 2 2 . Weapon 2 | . . . . . 2 . . . Parts Attached 35 | 8 5 6 . 1 8 5 2 . Power 4 | 1 . 1 . . 1 1 . . Engine 2 | 1 . . . . 1 . . . Core 2 | . . 1 . . . 1 . . Reactor . | . . . . . . . . . Propulsion 12 | 3 2 . . 1 5 . 1 . Treads 7 | 1 1 . . 1 3 . 1 . Leg 1 | . . . . . 1 . . . Wheel 3 | 2 1 . . . . . . . Hover . | . . . . . . . . . Flight 1 | . . . . . 1 . . . Utility 10 | 2 1 2 . . 1 3 1 . Device 5 | 1 . 2 . . . 1 1 . Storage 2 | 1 1 . . . . . . . Processor 1 | . . . . . . 1 . . Hackware 1 | . . . . . . 1 . . Protection 1 | . . . . . 1 . . . Artifact . | . . . . . . . . . Weapon 9 | 2 2 3 . . 1 1 . . Energy Gun 1 | 1 . . . . . . . . Energy Cannon . | . . . . . . . . . Ballistic Gun 2 | 1 . . . . 1 . . . Ballistic Cannon 4 | . 2 2 . . . . . . Launcher 1 | . . 1 . . . . . . Special Weapon . | . . . . . . . . . Impact Weapon . | . . . . . . . . . Slashing Weapon 1 | . . . . . . 1 . . Piercing Weapon . | . . . . . . . . . Special Melee Weapon . | . . . . . . . . . Unidentified Prototypes 2 | . . . . . 2 . . . Parts Lost 12 | . 2 6 . . . . . 4 Power 2 | . 1 1 . . . . . . Propulsion 4 | . 1 2 . . . . . 1 Utility 4 | . . 1 . . . . . 3 Weapon 2 | . . 2 . . . . . . Highest Loss Streak 5 | . 2 5 . . . . . 4 To Critical Strikes . | . . . . . . . . . Average Backups 15 | 3 9 12 15 16 18 18 18 17 Power . | . 1 1 1 1 1 1 1 . Propulsion 1 | 1 2 . . . . 2 4 3 Utility 8 | . 1 4 8 9 12 10 9 9 Weapon 4 | . 4 6 6 6 3 4 4 3 Tool/Special . | . . . . . . . . . Unused Backups 32 | . 1 3 . 1 5 5 . 17 Power 2 | . . . . . 1 . . 1 Propulsion 5 | . 1 . . . . . . 4 Utility 13 | . . . . . 2 3 . 8 Weapon 12 | . . 3 . 1 2 2 . 4 Tool/Special . | . . . . . . . . . Average Slot Usage (%) 78 | . 91 88 85 85 65 75 79 70 Engine 3 | . 6 . . . 6 4 . . Core 1 | . . 3 . . . 2 6 5 Treads 21 | . 14 13 14 14 28 30 26 22 Wheel 7 | . 13 13 14 14 3 . . . Device 8 | . 14 14 14 14 1 3 12 11 Storage 10 | . 14 14 14 14 9 7 6 5 Processor 1 | . . . . . . 3 6 5 Hackware 2 | . . . . . . 6 6 5 Protection 3 | . . . . . 7 7 6 5 Ballistic Gun 4 | . 8 . . . 8 6 6 5 Ballistic Cannon 11 | . 11 26 28 27 . . . . Peak Build Rating 74 | 7 8 12 15 18 60 66 74 74 Average Rating 37 | 5 7 9 12 16 55 63 72 65 On Entrance 28 | . 7 7 11 15 18 59 66 74 Naked Turns 9 | . . . . . . . . 9 Heaviest Build 74 | 12 47 52 49 49 71 72 74 74 Greatest Support 93 | 20 20 16 16 23 85 85 93 93 Greatest Overweight (x) 20 | 1 4 5 3 3 4 1 . 20 Average Overweight (x) 1 | . 2 2 3 2 1 . . . Largest Inventory Capacity 20 | 8 20 20 20 20 20 20 20 20 Average Capacity 19 | 7 15 20 20 20 20 20 20 18 Most Carried 20 | 7 12 17 19 20 20 20 20 20 Average Carried 16 | 3 9 12 16 19 19 19 19 18 Final Capacity 20 | 8 20 20 20 20 20 20 20 5 Final Carried 20 | 7 12 15 19 20 20 20 20 5 Class Distribution -------------------- 52% | Skirmisher 47% | Mutant Dominant Class ---------------- Mutant | -10/Materials Mutant | -10/Mines Mutant | -10/Exiles Mutant | -9/Mines Skirmisher | -8/Materials Skirmisher | -7/Factory Skirmisher | -6/Factory Skirmisher | -6/Waste Resources | -11 -10 -10 -10 -9 -8 -7 -6 -6 ----------- Run | Yrd Mat Min Exi Min Mat Fac Fac Was Matter Collected 2703 | 287 119 370 . 129 840 865 93 . Remotely . | . . . . . . . . . Salvage Created 3183 | 129 443 97 . 139 1262 1020 93 . Parts 185 | 14 28 5 . 11 72 46 9 . Haulers Intercepted 6 | . 1 . . . 4 1 . . Recyclers Shooed 1 | . . . . . . 1 . . Parts Field Recycled . | . . . . . . . . . Retrieved Matter . | . . . . . . . . . Parts Self-Destructed . | . . . . . . . . . Prevented . | . . . . . . . . . Kills | -11 -10 -10 -10 -9 -8 -7 -6 -6 ------- Run | Yrd Mat Min Exi Min Mat Fac Fac Was Combat Hostiles Destroyed 60 | . 12 9 . 6 15 17 1 . Guns 41 | . 8 . . . 15 17 1 . Cannons 16 | . 4 9 . 3 . . . . AOE 3 | . . . . 3 . . . . Classes Destroyed 15 | 2 3 1 . . 7 2 . . Worker 2 | . . . . . 2 . . . Builder 3 | . . . . . 3 . . . Tunneler 3 | 3 . . . . . . . . Hauler 6 | . 1 . . . 4 1 . . Recycler 3 | 1 . . . . 1 1 . . Operator 2 | . . . . . 1 . 1 . Watcher 6 | . . . . . 4 2 . . Swarmer 14 | . 3 3 . 3 4 1 . . Grunt 30 | . 9 2 . 3 5 11 . . Brawler 1 | . . . . . 1 . . . Duelist 1 | . . . . . . 1 . . Sentry 6 | . . . . . 5 . 1 . Hunter 3 | . . . . . 1 2 . . Programmer 2 | . . . . . . 2 . . Assembled 3 | . . 3 . . . . . . Best Kill Streak 6 | 3 4 3 . 6 4 5 1 . Combat Bots Only 6 | . 4 3 . 6 3 5 1 . Max Kills in Single Turn 3 | 1 1 1 . 3 2 1 1 . Gunslinging . | . . . . . . . . . Exploded 3 | . . . . 3 . . . . Melee . | . . . . . . . . . Uniques/NPCs Destroyed 1 | . . 1 . . . . . . YI-UF0 (-10/Mines) Combat | -11 -10 -10 -10 -9 -8 -7 -6 -6 -------- Run | Yrd Mat Min Exi Min Mat Fac Fac Was Hostile Shots Fired 190 | . 65 52 . 9 24 16 9 15 Missed 46 | . 20 16 . 3 4 . 3 . Hits 144 | . 45 36 . 6 20 16 6 15 Melee 16 | . . . . . . 1 . 15 Projectile 128 | . 45 36 . 6 20 15 6 . AOE 5 | . . 5 . . . . . . Critical Strikes 12 | . . . . . . 3 . 9 Damage Taken 2419 | . 477 599 . 84 248 297 31 683 Core 724 | . 93 97 . 24 14 31 . 465 Absorbed by Shields 14 | . . . . . . . 14 . Regen/Repaired (Parts) 108 | . . . . . 108 . . . Core Remaining (%) 76 | 100 . . . 14 97 95 . . Volleys Fired 179 | 7 37 31 . 6 48 42 8 . Largest 2 | 2 2 2 . 2 1 1 1 . Hottest 70 | 70 70 60 . 60 60 60 60 . Shots Fired 262 | 14 74 64 . 11 48 43 8 . Gun 175 | 14 62 . . . 48 43 8 . Cannon 86 | . 12 64 . 10 . . . . Launcher 1 | . . . . 1 . . . . Special . | . . . . . . . . . Kinetic 223 | 7 43 64 . 10 48 43 8 . Thermal 38 | 7 31 . . . . . . . Explosive 1 | . . . . 1 . . . . Electromagnetic . | . . . . . . . . . Robot Hit Streak 11 | 2 11 3 . 2 11 8 5 . Robot Miss Streak 7 | 2 2 4 . 3 7 7 5 . Penetration Max . | . . . . . . . . . Secondary Targets 2 | . 2 . . . . . . . Max Gunslinging Chain 1 | . 1 . . . . . . . Shots Hit Robots 178 | 6 50 27 . 4 46 40 5 . Core Hits 124 | 6 24 10 . 7 37 36 4 . Critical Kills . | . . . . . . . . . Critical Parts Destroyed . | . . . . . . . . . Critical Strikes 1 | . . 1 . . . . . . Blast 1 | . . 1 . . . . . . Melee Attacks 3 | . . . . . . 3 . . Impact . | . . . . . . . . . Slashing 3 | . . . . . . 3 . . Piercing . | . . . . . . . . . Sneak Attacks . | . . . . . . . . . Combat Hostiles . | . . . . . . . . . Follow-up Attacks . | . . . . . . . . . Damage Inflicted 6118 | 61 573 480 . 199 2269 2246 287 3 Guns 5329 | 61 466 . . . 2269 2246 287 . Cannons 680 | . 107 480 . 93 . . . . Explosions 106 | . . . . 106 . . . . Melee . | . . . . . . . . . Ramming 3 | . . . . . . . . 3 Kinetic 5716 | 23 318 480 . 93 2269 2246 287 . Thermal 293 | 38 255 . . . . . . . Explosive 106 | . . . . 106 . . . . Electromagnetic . | . . . . . . . . . Impact . | . . . . . . . . . Slashing . | . . . . . . . . . Piercing . | . . . . . . . . . Highest Corruption 5 | . 4 4 4 4 . 4 . 5 Average Corruption 3 | . 2 4 4 4 . 3 . 5 Corruption Purged . | . . . . . . . . . Corruption Blocked . | . . . . . . . . . Effects 82 | . 2 30 6 21 . 21 . 2 Message Errors 21 | . . 9 1 6 . 5 . . Matter Fused 22 | . 1 8 2 3 . 6 . 2 Heat Flow Errors 6 | . 1 1 . 2 . 2 . . Energy Discharges 13 | . . 4 2 4 . 3 . . Parts Fused 1 | . . . . . . 1 . . Data Loss (minor) 10 | . . 5 1 3 . 1 . . Data Loss (major) 5 | . . 1 . 2 . 2 . . Misfires 3 | . . 2 . . . 1 . . Alerts 1 | . . . . 1 . . . . Overload Shots . | . . . . . . . . . Overflow Damage 15 | . . 15 . . . . . . Projectiles 15 | . . 15 . . . . . . Explosions . | . . . . . . . . . Melee . | . . . . . . . . . Knockbacks 5 | . . 5 . . . . . . Impact . | . . . . . . . . . Kinetic 5 | . . 5 . . . . . . Secondary . | . . . . . . . . . Self-Inflicted Damage 19 | . . . . 18 . . . 1 Shots 1 | . . . . 1 . . . . Rammed 1 | . . . . . . . . 1 Targets Rammed 1 | . . . . . . . . 1 Kicked . | . . . . . . . . . Crushed . | . . . . . . . . . Highest Temperature 434 | 90 220 110 . 124 200 434 140 . Average Temperature 88 | 40 82 16 . 44 72 140 62 . Received Heat Transfer 547 | . 171 158 . 30 45 135 8 . Effects 1 | . . . . . . 1 . . Shutdowns 1 | . . . . . . 1 . . Siege Activations . | . . . . . . . . . Martial Activations . | . . . . . . . . . Shielding Activations . | . . . . . . . . . Robots Disrupted . | . . . . . . . . . Combat Hostiles . | . . . . . . . . . Robots Corrupted . | . . . . . . . . . Combat Hostiles . | . . . . . . . . . Parts Fried . | . . . . . . . . . Impact Corruptions . | . . . . . . . . . Robots Melted . | . . . . . . . . . Combat Hostiles . | . . . . . . . . . Parts Melted 2 | . 2 . . . . . . . Heat Transferred 851 | 111 740 . . . . . . . Parts Sabotaged . | . . . . . . . . . Parts Stolen . | . . . . . . . . . Parts Stripped . | . . . . . . . . . Power Chain Reactions . | . . . . . . . . . Alert | -11 -10 -10 -10 -9 -8 -7 -6 -6 ------- Run | Yrd Mat Min Exi Min Mat Fac Fac Was Maximum Alert Level 1 | . . . . . 1 . . . Low Security (%) 88 | 100 100 100 . 100 53 100 100 100 Level 1 11 | . . . . . 46 . . . Level 2 . | . . . . . . . . . Level 3 . | . . . . . . . . . Level 4 . | . . . . . . . . . Level 5 . | . . . . . . . . . High Security . | . . . . . . . . . Max Security . | . . . . . . . . . Peak Influence 326 | 15 166 111 . 135 326 189 86 . Initial 132 | . . 45 . . . 132 86 . Average 75 | 1 80 20 . 30 186 55 27 . Influence Increases 2200 | 20 391 165 . 145 868 524 87 . Destroy 0b10 Robot/C 1220 | . 240 100 . 120 400 340 20 . Destroy 0b10 Robot/NC 125 | 20 5 . . . 75 20 5 . Destroy Leader 304 | . 52 20 . 20 126 76 10 . Allied During Kill 74 | . . . . . 74 . . . Successful Hack 117 | . 33 . . . 14 20 50 . Select Force Hacks 60 | . 30 . . . 30 . . . Disable Machine 180 | . 30 15 . . 75 60 . . Destroy Structure 60 | . 1 . . 5 44 8 2 . Lose Combat Pursuer 60 | . . 30 . . 30 . . . Influence Decreases 2200 | 20 273 212 71 145 576 639 264 . Entered New Map 395 | . . 73 71 . . 160 91 . Time Decay 1655 | 20 253 139 . 145 496 429 173 . Lost Part 20 | . 20 . . . . . . . Lost Ally 80 | . . . . . 80 . . . Purge Threat 50 | . . . . . . 50 . . Squads Dispatched 11 | . 1 . . . 2 8 . . Investigation 6 | . 1 . . . 2 3 . . Extermination 3 | . . . . . . 3 . . Reinforcement 2 | . . . . . . 2 . . Assault . | . . . . . . . . . Garrison . | . . . . . . . . . Intercept . | . . . . . . . . . Searches Triggered . | . . . . . . . . . Construction Impeded . | . . . . . . . . . Haulers Reinforced 1 | . . . . . . 1 . . Active Scanning Responses . | . . . . . . . . . Cargo Convoy Interrupts . | . . . . . . . . . Stealth | -11 -10 -10 -10 -9 -8 -7 -6 -6 --------- Run | Yrd Mat Min Exi Min Mat Fac Fac Was Distress Signals 1 | . . . . . . 1 . . Communications Jammed . | . . . . . . . . . Distress Signals . | . . . . . . . . . Times Spotted 87 | . 17 12 . 6 26 19 2 5 Peak Tracking Total 5 | . 5 3 . 4 4 5 1 5 Tactical Retreats 4 | . . 2 . . 2 . . . Traps | -11 -10 -10 -10 -9 -8 -7 -6 -6 ------- Run | Yrd Mat Min Exi Min Mat Fac Fac Was Traps Triggered 11 | . 3 1 . . . 6 1 . Indirectly . | . . . . . . . . . Trap Hack Attempts . | . . . . . . . . . Triggered . | . . . . . . . . . Disarmed . | . . . . . . . . . Reprogrammed . | . . . . . . . . . Reused . | . . . . . . . . . Traps Extracted . | . . . . . . . . . Installed . | . . . . . . . . . Triggered . | . . . . . . . . . Most Traps Carried 4 | . . . . 4 4 4 4 4 Machines | -11 -10 -10 -10 -9 -8 -7 -6 -6 ---------- Run | Yrd Mat Min Exi Min Mat Fac Fac Was Machines Disabled 12 | . 2 1 . . 5 4 . . Max in Single Turn 1 | . 1 1 . . 1 1 . . Garrison Access 3 | . . . . . 1 1 1 . Machines Repaired . | . . . . . . . . . Machines Dismantled . | . . . . . . . . . Machines Sabotaged . | . . . . . . . . . Overloaded Fab Kills . | . . . . . . . . . Hacking | -11 -10 -10 -10 -9 -8 -7 -6 -6 --------- Run | Yrd Mat Min Exi Min Mat Fac Fac Was Machines Accessed 39 | . 7 1 2 1 15 8 5 . Terminals 25 | . 6 . . . 11 4 4 . Fabricators 2 | . . . . . . 2 . . Repair Stations 1 | . . . . . 1 . . . Recycling Units 3 | . 1 . . . 1 1 . . Scanalyzers 1 | . . . . . 1 . . . Garrison Access 3 | . . . . . 1 1 1 . Total Hacks 88 | . 20 1 5 1 32 17 12 . Successful 46 | . 9 1 5 1 18 6 6 . Failed 42 | . 11 . . . 14 11 6 . Catastrophic 7 | . 2 . . . 3 1 1 . Database Lockouts . | . . . . . . . . . Manual 19 | . 6 . 1 . 6 5 1 . Terminals 63 | . 18 . . . 25 9 11 . Fabricators 4 | . . . . . . 4 . . Repair Stations 2 | . . . . . 2 . . . Recycling Units 7 | . 2 . . . 2 3 . . Scanalyzers 2 | . . . . . 2 . . . Garrison Access 3 | . . . . . 1 1 1 . Terminal Hacks 30 | . 7 1 5 1 8 3 5 . Record 6 | . . . 4 . . . 2 . Robot Analysis 3 | . 2 . . . 1 . . . Prototype ID Bank 3 | . . . . . 3 . . . Open Door 3 | . . 1 . 1 . . 1 . Open DSF 1 | . . . . . . 1 . . Emergency Access Points 1 | . . . . . 1 . . . Alert Level 1 | . . . . . . . 1 . Unreport Threat 1 | . . . . . . 1 . . Locate Traps 3 | . 2 . . . 1 . . . Hauler Manifests 2 | . 1 . . . 1 . . . Registered Components 2 | . 1 . . . . . 1 . Zone Layout 3 | . 1 . . . 1 1 . . Proto ID Catalog 1 | . . . 1 . . . . . Fabricator Hacks 2 | . . . . . . 2 . . Load Schematic 1 | . . . . . . 1 . . Build 1 | . . . . . . 1 . . Repair Station Hacks 2 | . . . . . 2 . . . Scan Component 1 | . . . . . 1 . . . Repair 1 | . . . . . 1 . . . Recycling Unit Hacks 2 | . 1 . . . 1 . . . Retrieve Components 2 | . 1 . . . 1 . . . Scanalyzer 2 | . . . . . 2 . . . Insert Component 1 | . . . . . 1 . . . Analyze 1 | . . . . . 1 . . . Garrison Access Hacks 3 | . . . . . 1 1 1 . Seal Access 3 | . . . . . 1 1 1 . Unauthorized Hacks 5 | . 1 . . . 4 . . . Terminals 3 | . . . . . 3 . . . Botnet 2 | . . . . . 2 . . . Skim 1 | . . . . . 1 . . . Fabricators . | . . . . . . . . . Repair Stations . | . . . . . . . . . Recycling Units 2 | . 1 . . . 1 . . . Tunnel 2 | . 1 . . . 1 . . . Scanalyzers . | . . . . . . . . . Garrison Access . | . . . . . . . . . Data Cores Recovered 2 | . . . . . 1 . 1 . Used . | . . . . . . . . . Hacking Detections 27 | . 6 . . . 11 7 3 . Full Trace Events 2 | . . . . . . 2 . . Feedback Events . | . . . . . . . . . Feedback Blocked . | . . . . . . . . . Robot Schematics Acquired . | . . . . . . . . . Robots Built . | . . . . . . . . . Authchips . | . . . . . . . . . Time . | . . . . . . . . . Total Robot Build Rating . | . . . . . . . . . Part Schematics Acquired 1 | . . . . . 1 . . . Parts Built 2 | . . . . . . 2 . . Authchips . | . . . . . . . . . Time 36 | . . . . . . 36 . . Total Part Build Rating 6 | . . . . . . 6 . . Parts Repaired 1 | . . . . . 1 . . . Time 32 | . . . . . 32 . . . Parts Recycled . | . . . . . . . . . Recycled Matter . | . . . . . . . . . Retrieved Matter . | . . . . . . . . . Retrieved Components 12 | . 2 . . . 10 . . . Parts Scanalyzed 1 | . . . . . 1 . . . Part Schematics Acquired 1 | . . . . . 1 . . . Parts Damaged . | . . . . . . . . . Bothacking | -11 -10 -10 -10 -9 -8 -7 -6 -6 ------------ Run | Yrd Mat Min Exi Min Mat Fac Fac Was Used RIF Installer . | . . . . . . . . . Robots Hacked . | . . . . . . . . . Non-combat . | . . . . . . . . . Combat . | . . . . . . . . . Robot Hacks Applied . | . . . . . . . . . Relay Couplers Released . | . . . . . . . . . Fabnet Peak Effective % . | . . . . . . . . . Robots Rewired . | . . . . . . . . . Allies Hacked . | . . . . . . . . . Hacks Repelled . | . . . . . . . . . Allies | -11 -10 -10 -10 -9 -8 -7 -6 -6 -------- Run | Yrd Mat Min Exi Min Mat Fac Fac Was Total Allies 5 | . . . . 5 . . . . Largest Group 5 | . . . . 5 5 . . . Highest-Rated Group 85 | . . . . 85 85 . . . Highest-Rated Ally 31 | . . . . 31 31 . . . Total Orders . | . . . . . . . . . Ally Attacks 39 | . . . . . 39 . . . Total Damage 328 | . . . . . 328 . . . Kills 5 | . . . . . 5 . . . Allies Corrupted . | . . . . . . . . . Allies Melted . | . . . . . . . . . Intel | -11 -10 -10 -10 -9 -8 -7 -6 -6 ------- Run | Yrd Mat Min Exi Min Mat Fac Fac Was Active Infowar (turns) 3140 | 89 620 435 . . . 1500 408 88 Structural 1254 | . . . . . . 759 407 88 Seismic 1144 | 89 620 435 . . . . . . Machine Analysis 1237 | . . . . . . 741 408 88 Robot Analysis Total 3 | . 2 . . . 1 . . . Derelict Logs Recovered 2 | . . 1 . 1 . . . . Drone Launches . | . . . . . . . . . Drone Recoveries . | . . . . . . . . . Exploration | -11 -10 -10 -10 -9 -8 -7 -6 -6 ------------- Run | Yrd Mat Min Exi Min Mat Fac Fac Was Turns Passed 6825 | 189 620 1414 318 693 1581 1505 408 97 Spaces Moved 3865 | 103 397 716 219 453 900 783 240 54 Core 5 | 2 . . . . . . . 3 Treads 1739 | 82 1 . . 7 575 783 240 51 Legs . | . . . . . . . . . Wheels 2121 | 19 396 716 219 446 325 . . . Hover . | . . . . . . . . . Flight . | . . . . . . . . . Fastest Speed 50 | 50 95 130 145 145 145 158 158 50 Average Speed 147 | 146 120 136 145 147 154 158 158 173 Slowest Speed 1050 | 160 320 155 145 320 238 245 158 1050 Overloaded Moves . | . . . . . . . . . Propulsion Burnouts . | . . . . . . . . . Robots Hopped . | . . . . . . . . . Potential Cave-ins . | . . . . . . . . . Cave-ins Triggered . | . . . . . . . . . Exploration Rate (%) 49 | 7 73 85 60 73 76 22 6 44 Regions Visited 8 Branch Regions 3 Pre-discovered Areas 4 | . 1 1 1 . 1 . . . Known Exits Taken . | . . . . . . . . . Unknown Exits Taken 7 | 1 1 1 1 1 1 1 . . Scrap Searched 2 | . . . . 2 . . . . Spaces Dug 1 | . . . . . . . 1 . Terrain Destroyed 58 | . . 3 . 5 43 6 1 . Melee . | . . . . . . . . . Projectile 53 | . . 3 . . 43 6 1 . AOE 5 | . . . . 5 . . . . Terrain Rammed . | . . . . . . . . . Walls Destroyed . | . . . . . . . . . Machines Disabled . | . . . . . . . . . Actions | -11 -10 -10 -10 -9 -8 -7 -6 -6 --------- Run | Yrd Mat Min Exi Min Mat Fac Fac Was Total 4837 | 124 469 1090 219 466 1096 1047 270 56 Wait 663 | . 22 321 . . 111 193 16 . Move 3858 | 102 396 715 218 452 899 782 240 54 Hop . | . . . . . . . . . Pick Up 47 | 7 5 10 1 2 12 8 2 . Fast Attach 25 | 7 2 2 . . 8 5 . 1 Attach 12 | . 1 5 . . 1 3 2 . Detach 5 | . 2 1 . . . 2 . . Swap 11 | 1 2 2 . 3 2 . 1 . Drop 33 | . 2 3 . 3 15 9 1 . Fire 179 | 7 37 31 . 6 48 42 8 . Melee 3 | . . . . . . 3 . . Ram 1 | . . . . . . . . 1 Kick . | . . . . . . . . . Crush . | . . . . . . . . . Escape Stasis . | . . . . . . . . . Rewire . | . . . . . . . . . Trap . | . . . . . . . . . Miscellaneous . | . . . . . . . . . Route ------- -11/Scrapyard -10/Materials (discovered 4 exits: [*Mat x2] / *Min x2) -10/Mines (discovered 3 exits: [*Mat x2] / *Exi) -10/Exiles -9/Mines -8/Materials (discovered 2 exits: *Fac x2) -7/Factory -6/Factory -6/Waste History --------- Turn | Location | Event 13 | -11/Scrapyard | Discovered new exit (range 14) 190 | -11/Scrapyard | Entered Materials 288 | -10/Materials | Discovered new exit (range 15) 301 | -10/Materials | Build established: Mutant 416 | -10/Materials | Discovered new exit (range 18) 666 | -10/Materials | Discovered new exit (range 3) 705 | -10/Materials | Discovered new exit (range 15) 810 | -10/Materials | Entered Mines 836 | -10/Mines | Core integrity fell below 50% 937 | -10/Mines | Assembled infested the area 942 | -10/Mines | Assisted by a Guerilla fighting off Assembled 1259 | -10/Mines | Destroyed YI-UF0 1278 | -10/Mines | Lost 5 parts (2n1u2w) 1322 | -10/Mines | Deemed a non-threat by the Exiles lab entrance 1324 | -10/Mines | Discovered new exit (range 5) 1421 | -10/Mines | Discovered new exit (range 7) 1503 | -10/Mines | Discovered new exit (range 11) 1658 | -10/Mines | Learned location of Storage (-7) 1810 | -10/Mines | Met a Derelict who couldn't figure out how to use a Trap Extractor 2224 | -10/Mines | Entered Exiles 2259 | -10/Exiles | Met 8R-AWN 2285 | -10/Exiles | Met EX-HEX 2327 | -10/Exiles | Met EX-BIN 2349 | -10/Exiles | Aligned with FarCom system 2351 | -10/Exiles | Given EX-Vault access code 2387 | -10/Exiles | Opened EX-Vault 2398 | -10/Exiles | Found XL Autogun Array 2434 | -10/Exiles | Warned to stay clear of 0b10 Research branches 2475 | -10/Exiles | Met EX-DEC 2484 | -10/Exiles | Learned location of Zion (-7) 2529 | -10/Exiles | Discovered new exit (range 11) 2542 | -10/Exiles | Left Exiles lab with XL Autogun Array 2542 | -10/Exiles | Entered Mines 2545 | -9/Mines | Core integrity fell below 20% 2673 | -9/Mines | Found a damaged Exp. Sensor Array with a note attached 2676 | -9/Mines | Found Prototype Device 2869 | -9/Mines | Found the Drone Emporium 2878 | -9/Mines | Learned Materials emergency access door positions 2885 | -9/Mines | Found Prototype Device 3011 | -9/Mines | Assisted by bots powering up and referring to "LRC-V3" 3182 | -9/Mines | Discovered new exit (range 7) 3195 | -9/Mines | Found a hidden stash of uninstalled traps 3235 | -9/Mines | Entered Materials 3235 | -8/Materials | Accompanied by 5 allies 3235 | -8/Materials | Evolved 4 slots: Propulsion x2, Weapon x2 3240 | -8/Materials | Led the pair of lost Derelicts to an unsafe place 3555 | -8/Materials | Build established: Skirmisher 3588 | -8/Materials | Discovered new exit (range 14) 3911 | -8/Materials | Repaired Imp. Treads 4209 | -8/Materials | Discovered new exit (range 14) 4816 | -8/Materials | Entered Factory 4816 | -7/Factory | Evolved 2 slots: Utility x2 5743 | -7/Factory | Discovered new exit (range 16) 6191 | -7/Factory | Fabricated Arm. Treads (x2) 6321 | -7/Factory | Entered another Factory area 6321 | -6/Factory | Evolved 2 slots: Utility x2 6688 | -6/Factory | Discovered new exit (range 5) 6729 | -6/Factory | Sucked down chute 6729 | -6/Factory | Entered Waste 6744 | -6/Waste | EMP discharged 6789 | -6/Waste | Spotted C-40 Crusher 6798 | -6/Waste | Spotted C-40 Crusher 6801 | -6/Waste | Spotted C-40 Crusher 6803 | -6/Waste | Spotted C-40 Crusher 6805 | -6/Waste | Crushed by Compactor (1 part destroyed, 2 dropped) 6810 | -6/Waste | Crushed by Compactor (1 part destroyed, 2 dropped) 6813 | -6/Waste | Crushed by Compactor (0 parts destroyed, 2 dropped) 6817 | -6/Waste | Crushed by Compactor (1 part destroyed, 2 dropped) 6817 | -6/Waste | Crushed by Compactor (1 part destroyed) 6823 | -6/Waste | Spotted C-40 Crusher 6826 | -6/Waste | Self-destructed Last Messages --------------- 06817_ Hcp. Storage Unit crushed. 06817_ Mic. Nuclear Core crushed. 06817_ Machine Analyzer crushed. 06817_ Imp. Treads crushed. 06817_ Prototype Ballistic Gun crushed. 06817_ Arm. Treads crushed. 06817_ Adv. Visual Processing Unit crushed. 06817_ Structural Scanner crushed. 06819_ Hrd. Medium Armor Plating crushed. 06819_ Imp. Trap Extractor crushed. 06819_ Prototype Ballistic Gun crushed. 06819_ Adv. Signal Interpreter crushed. 06820_ Gauss Rifle crushed. 06820_ Com. Matter Pod crushed. 06820_ Arm. Treads crushed. 06820_ Great Axe crushed. 06820_ System Shield crushed. 06824_ Prototype Ballistic Cannon crushed. 06824_ Arm. Treads crushed. 06825_ Slammed into C-40 Crusher. Map ----- +----------------------------------------------------+ | ?????????????????????????????????????????????????? | | ??????????????????????########???????????????????? | | ??????????????????????########???????????????????? | | ??????????? ???## ##?????????????????? | | ????????## ??## ##?????????????????? | | ????????## ??## ##?????????????????? | | ????????## ??## ##?????????????????? | | ????????## ??## ##?????????????????? | | ????????## ????? ##?????????????????? | | ????????## ?????? ##?????????????????? | | ?????????? ???? ???????????????????? | | ??????????## ##????## ##???????????????????? | | ??????????## =##????## ##???????????????????? | | ??????????## ##????## ##???????????????????? | | ????????#### ######## ##???????????????????? | | ????????#### ######## ##???????????????????? | | ????????## ##???????????????????? | | ????????## ##???????????????????? | | ????????## ##???????????????????? | | ????????## ##???????????????????? | | ????????#### = ######## ##???????????????????? | | ????????#### ######## ##???????????????????? | | ??????????## ##????## * ##???????????????????? | | ????????#### ##????##*CC=##???????????????????? | | ????????#### ##????##!CC!##???????????????????? | | ????????## ##????##=@CC##???????????????????? | | ????????## ##????##CCCC##???????????????????? | | ????????## ##????##CCCC##???????????????????? | | ????????## ##????## CC##???????????????????? | | ############ ##????## ##???????????????????? | | ############ ##????## ##???????????????????? | | #### ##????## ##???????????????????? | | #### ##????## ##???????????????????? | | #### ##????## ##???????????????????? | | = ##????## CC ???????????????????? | | ##????## CC????????????????????? | | ##????## ???????????????????? | | ##????## ?????????????????? | | #### ##????## ####?????????????????? | | #### ##?????? ####?????????????????? | | #### ##?????? ##???????????????????? | | ############ ##???????????????????????????????? | | ############ ##???????????????????????????????? | | ??????????########???????????????????????????????? | | ??????????########???????????????????????????????? | | ?????????????????????????????????????????????????? | | ?????????????????????????????????????????????????? | | ?????????????????????????????????????????????????? | | ?????????????????????????????????????????????????? | | ?????????????????????????????????????????????????? | +----------------------------------------------------+ Best States ------------- Heat Dissipation 39 Energy Generation 15 Energy Capacity 280 Matter Stores 300 Matter Capacity 300 Sight Range 16 Terrain Scan Density 10 Armor Coverage 225 Evasion (%) 50 Recoil Reduction 4 Offensive Hacking 10 Trap Extractor Capacity 6 Item Schematics ----------------- Arm. Treads | -8/Materials | Scanalyzed Robot Schematics ------------------ None Fabricated ------------ Arm. Treads | x2 | -7/Factory Repaired ---------- Imp. Treads | 30% | -8/Materials Alien Tech Used ----------------- None Achievements -------------- None Challenges ------------ None Game ------ Seed OvertunedHybridExpander Manual? 0 Play Time 00:54:39 Cumulative 59.5 hours Start 2025.09.19 @ 22:28:41 End 2025.09.19 @ 23:31:01 Sessions 1 Manual Loads 0 Difficulty Rogue Special Mode None Game No. 116 Rogue 116 Adventurer 0 Explorer 0 Win Type - Total 0 Types 0/0/0/0/0/0/0/0/0/0 Lore% 49 Gallery% 35 Achievement% 32 Wizard Run 0 Options --------- Layout 2 ASCII 0 Keyboard 1 Movement Arrows Keybinds 0 Fullscreen 2 Font 32/SmallcapsGlow Map View 50x44 Zoom Use 0% Tactical HUD 1 Map Filters NONE Filters NONE Steam 1 RUN: 28ec69b0-eb94-49e4-9bba-88f6d15d84ca